[Event "*** Titled Tuesday Blitz"]
[Site "Chess.com"]
[Date "2020.11.24"]
[Round "10"]
[White "Mikhail_Golubev"]
[Black "Sergey85Rodchenkov"]
[Result "1-0"]
[WhiteElo "2568"]
[BlackElo "2449"]
[TimeControl "180+1"]
[EndTime "12:14:00 PST"]
[Termination "Mikhail_Golubev won by resignation"]

1. e4 {[%clk 0:03:00.9]} 1... c5 {[%clk 0:02:59.9]} 2. Nf3 {[%clk 0:03:00.1]}
2... d6 {[%clk 0:02:59.9]} 3. d4 {[%clk 0:02:59.7]} 3... cxd4 {[%clk 0:02:59.8]}
4. Nxd4 {[%clk 0:03:00.6]} 4... Nf6 {[%clk 0:02:59.9]} 5. Nc3 {[%clk 0:03:01.3]}
5... a6 {[%clk 0:02:59]} 6. Bc4 {[%clk 0:03:01.2]} 6... e6 {[%clk 0:02:58.2]} 7.
O-O {[%clk 0:03:01.6]} 7... b5 {[%clk 0:02:56.4]} 8. Bb3 {[%clk 0:03:01]} 8...
Be7 {[%clk 0:02:56.7]} 9. f4 {[%clk 0:02:59.7]} 9... Bb7 {[%clk 0:02:55.9]} 10.
Be3 {[%clk 0:02:58.3]} 10... Nc6 {[%clk 0:02:55.4]} 11. a3 {[%clk 0:02:23]}
11... O-O {[%clk 0:02:49.3]} 12. f5 {[%clk 0:02:18.5]} 12... Nxd4 {[%clk
0:02:34.6]} 13. Qxd4 {[%clk 0:02:06.8]} 13... e5 {[%clk 0:02:34.5]} 14. Qd3
{[%clk 0:02:06.7]} 14... h6 {[%clk 0:02:33.2]} 15. Bf2 {[%clk 0:01:58.4]} 15...
Rc8 {[%clk 0:02:30.6]} 16. Rae1 {[%clk 0:01:39.3]} 16... Qc7 {[%clk 0:01:31.9]}
17. Bh4 {[%clk 0:01:32]} 17... Qc5+ {[%clk 0:01:26.5]} 18. Kh1 {[%clk
0:01:24.3]} 18... Qd4 {[%clk 0:01:25.5]} 19. Bxf6 {[%clk 0:01:19.6]} 19... Bxf6
{[%clk 0:01:25]} 20. Qe2 {[%clk 0:01:07.4]} 20... Rxc3 {[%clk 0:01:19.3]} 21.
bxc3 {[%clk 0:01:07.3]} 21... Qxc3 {[%clk 0:01:20.1]} 22. Rd1 {[%clk 0:01:06.2]}
22... Be7 {[%clk 0:01:17.7]} 23. f6 {[%clk 0:01:02]} 23... Bxf6 {[%clk
0:01:16.9]} 24. Rxd6 {[%clk 0:01:01.8]} 24... Qc5 {[%clk 0:01:06.9]} 25. Rdxf6
{[%clk 0:01:01.8]} 25... gxf6 {[%clk 0:01:06.7]} 26. Qg4+ {[%clk 0:00:58.3]}
26... Kh8 {[%clk 0:01:03.9]} 27. Qh4 {[%clk 0:00:55.4]} 27... Qe3 {[%clk
0:01:03.2]} 28. Qxf6+ {[%clk 0:00:55]} 28... Kh7 {[%clk 0:01:03.8]} 29. Qe7
{[%clk 0:00:19.2]} 29... Bxe4 {[%clk 0:00:17.1]} 30. Rxf7+ {[%clk 0:00:15.1]}
30... Kg6 {[%clk 0:00:16.9]} 31. Rg7+ {[%clk 0:00:13.7]} 31... Kh5 {[%clk
0:00:17.1]} 32. Bf7+ {[%clk 0:00:12.7]} 32... Rxf7 {[%clk 0:00:15.7]} 33. Qxf7+
{[%clk 0:00:12]} 33... Kh4 {[%clk 0:00:15.2]} 34. Qf6+ {[%clk 0:00:10.4]} 34...
Kh5 {[%clk 0:00:13.7]} 35. Qxe5+ {[%clk 0:00:09.6]} 35... Kh4 {[%clk 0:00:12]}
36. Qg3+ {[%clk 0:00:09.4]} 36... Kh5 {[%clk 0:00:10.3]} 37. Qxe3 {[%clk
0:00:08.9]} 1-0

[Event "*** Titled Tuesday Blitz"]
[Site "Chess.com"]
[Date "2020.11.24"]
[Round "10"]
[White "Aureliano-Buendia"]
[Black "SchieberSpieler"]
[Result "0-1"]
[WhiteElo "2473"]
[BlackElo "2364"]
[TimeControl "180+1"]
[EndTime "12:14:00 PST"]
[Termination "SchieberSpieler won by resignation"]

1. Nf3 {[%clk 0:02:23.4]} 1... d5 {[%clk 0:03:00]} 2. d4 {[%clk 0:02:23.3]} 2...
Nf6 {[%clk 0:03:00.1]} 3. c4 {[%clk 0:02:23.4]} 3... e6 {[%clk 0:03:00.7]} 4.
Nc3 {[%clk 0:02:23.6]} 4... c5 {[%clk 0:03:00.7]} 5. g3 {[%clk 0:02:23]} 5...
cxd4 {[%clk 0:03:00]} 6. Nxd4 {[%clk 0:02:22.8]} 6... e5 {[%clk 0:03:00.3]} 7.
Nf3 {[%clk 0:02:20]} 7... d4 {[%clk 0:03:00.7]} 8. Nxe5 {[%clk 0:02:15.5]} 8...
Nc6 {[%clk 0:02:43]} 9. Nxc6 {[%clk 0:02:09.6]} 9... bxc6 {[%clk 0:02:43.9]} 10.
Nb1 {[%clk 0:01:45.3]} 10... Be6 {[%clk 0:02:42]} 11. Qa4 {[%clk 0:01:43.3]}
11... Qd7 {[%clk 0:02:34.7]} 12. Bg2 {[%clk 0:01:42]} 12... Rc8 {[%clk
0:02:35.3]} 13. O-O {[%clk 0:01:39.7]} 13... Be7 {[%clk 0:02:35.1]} 14. Nd2
{[%clk 0:01:37]} 14... O-O {[%clk 0:02:33.4]} 15. Nb3 {[%clk 0:01:28.3]} 15...
c5 {[%clk 0:02:28.3]} 16. Qxd7 {[%clk 0:01:21.9]} 16... Nxd7 {[%clk 0:02:29.2]}
17. Nd2 {[%clk 0:01:19]} 17... Ne5 {[%clk 0:02:28.8]} 18. b3 {[%clk 0:01:18.7]}
18... Rfd8 {[%clk 0:01:48.6]} 19. Bb2 {[%clk 0:01:16.4]} 19... Nc6 {[%clk
0:01:46.7]} 20. Nf3 {[%clk 0:01:03.2]} 20... a5 {[%clk 0:01:34.9]} 21. Bc1
{[%clk 0:00:53.9]} 21... Rd7 {[%clk 0:01:31.7]} 22. Ne1 {[%clk 0:00:52.7]} 22...
a4 {[%clk 0:01:28.9]} 23. Nd3 {[%clk 0:00:51.4]} 23... Na5 {[%clk 0:01:05.3]}
24. Bd2 {[%clk 0:00:49.1]} 24... Ra7 {[%clk 0:01:05.4]} 25. Rfb1 {[%clk
0:00:35.8]} 25... Rb8 {[%clk 0:01:02]} 26. Bd5 {[%clk 0:00:20.3]} 26... Bxd5
{[%clk 0:00:46]} 27. cxd5 {[%clk 0:00:19.8]} 27... Bd6 {[%clk 0:00:40.6]} 28. b4
{[%clk 0:00:16]} 28... cxb4 {[%clk 0:00:32.9]} 29. Bxb4 {[%clk 0:00:15]} 29...
Bxb4 {[%clk 0:00:30.3]} 30. Rxb4 {[%clk 0:00:13.6]} 30... Rxb4 {[%clk
0:00:30.3]} 31. Nxb4 {[%clk 0:00:14.5]} 31... Kf8 {[%clk 0:00:30.7]} 32. Rc1
{[%clk 0:00:14.1]} 32... Rb7 {[%clk 0:00:30.5]} 33. a3 {[%clk 0:00:13.2]} 33...
Nb3 {[%clk 0:00:30.2]} 34. Rc4 {[%clk 0:00:12]} 34... Ke7 {[%clk 0:00:26]} 35.
Nc6+ {[%clk 0:00:10.1]} 35... Kd6 {[%clk 0:00:26.4]} 36. Nxd4 {[%clk 0:00:11]}
36... Kxd5 {[%clk 0:00:25.1]} 37. Nxb3 {[%clk 0:00:08.9]} 37... axb3 {[%clk
0:00:21.8]} 38. Rc1 {[%clk 0:00:08.8]} 38... b2 {[%clk 0:00:21.7]} 39. Rb1
{[%clk 0:00:09.4]} 39... Kc4 {[%clk 0:00:22.2]} 40. a4 {[%clk 0:00:09.9]} 40...
Kc3 {[%clk 0:00:22.1]} 41. a5 {[%clk 0:00:10.3]} 41... Ra7 {[%clk 0:00:22.5]}
0-1

[Event "*** Titled Tuesday Blitz"]
[Site "Chess.com"]
[Date "2020.11.24"]
[Round "10"]
[White "tan275"]
[Black "AniJak"]
[Result "0-1"]
[WhiteElo "2192"]
[BlackElo "2329"]
[TimeControl "180+1"]
[EndTime "12:14:02 PST"]
[Termination "AniJak won on time"]

1. d4 {[%clk 0:03:00.9]} 1... d5 {[%clk 0:02:59.4]} 2. c4 {[%clk 0:03:00.7]}
2... c6 {[%clk 0:02:59.5]} 3. Nf3 {[%clk 0:03:00.1]} 3... Nf6 {[%clk 0:02:59.4]}
4. g3 {[%clk 0:03:00.1]} 4... dxc4 {[%clk 0:02:54.6]} 5. Bg2 {[%clk 0:03:00.2]}
5... b5 {[%clk 0:02:47.9]} 6. O-O {[%clk 0:02:52.9]} 6... Bb7 {[%clk 0:02:47.3]}
7. a4 {[%clk 0:02:46.1]} 7... a6 {[%clk 0:02:46.8]} 8. Ne5 {[%clk 0:02:44.8]}
8... e6 {[%clk 0:02:46.4]} 9. Nc3 {[%clk 0:02:42.6]} 9... b4 {[%clk 0:02:42.7]}
10. Ne4 {[%clk 0:02:37.7]} 10... Nxe4 {[%clk 0:02:32.9]} 11. Bxe4 {[%clk
0:02:37.7]} 11... Nd7 {[%clk 0:02:31.9]} 12. Nxc4 {[%clk 0:02:17.4]} 12... Be7
{[%clk 0:02:30.5]} 13. Qc2 {[%clk 0:02:03]} 13... O-O {[%clk 0:02:27.6]} 14.
Bxh7+ {[%clk 0:02:00.7]} 14... Kh8 {[%clk 0:02:26.7]} 15. Be4 {[%clk 0:01:56.8]}
15... Nf6 {[%clk 0:02:25.6]} 16. Bf3 {[%clk 0:01:50.7]} 16... Qxd4 {[%clk
0:02:24.1]} 17. Na5 {[%clk 0:01:44.3]} 17... Rab8 {[%clk 0:02:17.7]} 18. Be3
{[%clk 0:01:28.7]} 18... Qe5 {[%clk 0:01:57.4]} 19. Nxb7 {[%clk 0:01:19.6]}
19... Rxb7 {[%clk 0:01:57.4]} 20. Bxc6 {[%clk 0:00:58.1]} 20... b3 {[%clk
0:01:57.2]} 21. Qc1 {[%clk 0:00:24.6]} 21... Rb4 {[%clk 0:01:52.7]} 22. Bf4
{[%clk 0:00:23.3]} 22... Qh5 {[%clk 0:01:49.9]} 23. Bf3 {[%clk 0:00:20.4]} 23...
Qh3 {[%clk 0:01:45.7]} 24. Bg2 {[%clk 0:00:19.3]} 24... Qh5 {[%clk 0:01:45]} 25.
Qd2 {[%clk 0:00:18.3]} 25... Ng4 {[%clk 0:01:39.7]} 26. h3 {[%clk 0:00:17.7]}
26... Nf6 {[%clk 0:01:33.7]} 27. Bd6 {[%clk 0:00:17.6]} 27... Bxd6 {[%clk
0:01:31.2]} 28. Qxd6 {[%clk 0:00:17.5]} 28... Rbb8 {[%clk 0:01:31.6]} 29. Rac1
{[%clk 0:00:17.5]} 29... Qxe2 {[%clk 0:01:30.4]} 30. Rfe1 {[%clk 0:00:13.9]}
30... Qxb2 {[%clk 0:01:30]} 31. Qxa6 {[%clk 0:00:13.1]} 31... Qa3 {[%clk
0:01:27.1]} 32. Rb1 {[%clk 0:00:11.5]} 32... b2 {[%clk 0:01:27.1]} 33. a5 {[%clk
0:00:10.4]} 33... Nd7 {[%clk 0:01:21.2]} 34. Qe2 {[%clk 0:00:09.8]} 34... Nc5
{[%clk 0:01:16.7]} 35. Qh5+ {[%clk 0:00:09.3]} 35... Kg8 {[%clk 0:01:15.6]} 36.
a6 {[%clk 0:00:09.1]} 36... Nxa6 {[%clk 0:01:14.9]} 37. Be4 {[%clk 0:00:08.6]}
37... f5 {[%clk 0:01:11.2]} 38. Bc2 {[%clk 0:00:07.5]} 38... Nc5 {[%clk
0:01:10.8]} 39. Qg6 {[%clk 0:00:05.6]} 39... Rf6 {[%clk 0:01:06]} 40. Qg5 {[%clk
0:00:05.8]} 40... Qc3 {[%clk 0:01:03.5]} 41. Qf4 {[%clk 0:00:05.5]} 41... Rbf8
{[%clk 0:00:57.6]} 42. Re2 {[%clk 0:00:02.9]} 42... Na6 {[%clk 0:00:52]} 43. Qa4
{[%clk 0:00:01.8]} 43... Nb4 {[%clk 0:00:51.4]} 44. Qb3 {[%clk 0:00:02.1]} 44...
Qc5 {[%clk 0:00:49.1]} 45. Rxe6 {[%clk 0:00:01.3]} 45... Rxe6 {[%clk 0:00:47.1]}
46. Qxe6+ {[%clk 0:00:01.9]} 46... Kh8 {[%clk 0:00:47.7]} 47. Bb3 {[%clk
0:00:02]} 47... Qc1+ {[%clk 0:00:46.2]} 48. Rxc1 {[%clk 0:00:01.8]} 48...
bxc1=Q+ {[%clk 0:00:46.3]} 49. Kh2 {[%clk 0:00:02.7]} 49... Qh6 {[%clk
0:00:44.3]} 0-1

[Event "*** Titled Tuesday Blitz"]
[Site "Chess.com"]
[Date "2020.11.24"]
[Round "10"]
[White "sasko1234"]
[Black "theblitzchamp"]
[Result "0-1"]
[WhiteElo "2469"]
[BlackElo "2600"]
[TimeControl "180+1"]
[EndTime "12:14:03 PST"]
[Termination "theblitzchamp won by checkmate"]

1. Nf3 {[%clk 0:03:00.9]} 1... d5 {[%clk 0:02:58.7]} 2. d4 {[%clk 0:02:59.4]}
2... Nf6 {[%clk 0:02:53.9]} 3. Bf4 {[%clk 0:02:58.2]} 3... c6 {[%clk 0:02:52.8]}
4. e3 {[%clk 0:02:57.8]} 4... Bf5 {[%clk 0:02:49.5]} 5. c3 {[%clk 0:02:56.9]}
5... e6 {[%clk 0:02:48]} 6. Nbd2 {[%clk 0:02:56]} 6... Nbd7 {[%clk 0:02:46.5]}
7. Be2 {[%clk 0:02:54.7]} 7... h6 {[%clk 0:02:46.4]} 8. O-O {[%clk 0:02:53.2]}
8... Be7 {[%clk 0:02:46.4]} 9. Ne5 {[%clk 0:02:52.5]} 9... O-O {[%clk 0:02:46]}
10. f3 {[%clk 0:02:49.4]} 10... Nh5 {[%clk 0:02:18.8]} 11. Nxd7 {[%clk
0:02:43.9]} 11... Qxd7 {[%clk 0:02:18.5]} 12. Be5 {[%clk 0:02:43.4]} 12... f6
{[%clk 0:02:18.9]} 13. Bg3 {[%clk 0:02:43.3]} 13... Nxg3 {[%clk 0:02:18.8]} 14.
hxg3 {[%clk 0:02:43.4]} 14... Bh7 {[%clk 0:02:19.3]} 15. Re1 {[%clk 0:02:39.6]}
15... e5 {[%clk 0:02:18]} 16. Nf1 {[%clk 0:02:39.2]} 16... Rae8 {[%clk 0:02:14]}
17. Bd3 {[%clk 0:02:37.3]} 17... e4 {[%clk 0:02:00.2]} 18. fxe4 {[%clk
0:02:33.4]} 18... dxe4 {[%clk 0:01:59.9]} 19. Bc4+ {[%clk 0:02:33.2]} 19... Kh8
{[%clk 0:02:00.5]} 20. Be2 {[%clk 0:02:32.5]} 20... Bd6 {[%clk 0:01:59.9]} 21.
Bc4 {[%clk 0:02:23.2]} 21... Qf5 {[%clk 0:01:44]} 22. Qe2 {[%clk 0:02:20.2]}
22... Qg5 {[%clk 0:01:44.2]} 23. Qf2 {[%clk 0:02:20]} 23... f5 {[%clk
0:01:40.4]} 24. a4 {[%clk 0:02:15.5]} 24... a5 {[%clk 0:01:36.3]} 25. Rab1
{[%clk 0:02:13]} 25... Rf6 {[%clk 0:01:35.5]} 26. b4 {[%clk 0:02:07.5]} 26...
axb4 {[%clk 0:01:35.4]} 27. cxb4 {[%clk 0:02:06.6]} 27... Ref8 {[%clk
0:01:30.2]} 28. b5 {[%clk 0:02:02.2]} 28... Rg6 {[%clk 0:00:42.7]} 29. bxc6
{[%clk 0:01:46.7]} 29... bxc6 {[%clk 0:00:42.7]} 30. a5 {[%clk 0:01:45.8]} 30...
c5 {[%clk 0:00:37.8]} 31. dxc5 {[%clk 0:01:42.1]} 31... Bxc5 {[%clk 0:00:37.9]}
32. a6 {[%clk 0:01:40.7]} 32... Bg8 {[%clk 0:00:33.7]} 33. Bxg8 {[%clk 0:01:34]}
33... Kxg8 {[%clk 0:00:34.6]} 34. Rec1 {[%clk 0:01:27.9]} 34... Qe7 {[%clk
0:00:29.4]} 35. Qe2 {[%clk 0:01:17.4]} 35... Kh7 {[%clk 0:00:26.9]} 36. Qc4
{[%clk 0:01:00.1]} 36... Bb6 {[%clk 0:00:20.6]} 37. Qb5 {[%clk 0:00:42.8]} 37...
f4 {[%clk 0:00:20.2]} 38. gxf4 {[%clk 0:00:38.5]} 38... Rxf4 {[%clk 0:00:20.3]}
39. Rc6 {[%clk 0:00:34.9]} 39... Rxf1+ {[%clk 0:00:12.8]} 40. Kxf1 {[%clk
0:00:30]} 40... Qf7+ {[%clk 0:00:12.4]} 41. Ke1 {[%clk 0:00:21.1]} 41... Bxe3
{[%clk 0:00:12.3]} 42. Rxg6 {[%clk 0:00:18.4]} 42... Qf2+ {[%clk 0:00:11.8]} 43.
Kd1 {[%clk 0:00:15.5]} 43... Qd2# {[%clk 0:00:12.7]} 0-1

[Event "*** Titled Tuesday Blitz"]
[Site "Chess.com"]
[Date "2020.11.24"]
[Round "10"]
[White "Mambastik-Fantastic"]
[Black "Itk04"]
[Result "0-1"]
[WhiteElo "2305"]
[BlackElo "2454"]
[TimeControl "180+1"]
[EndTime "12:14:04 PST"]
[Termination "Itk04 won on time"]

1. e4 {[%clk 0:02:59.8]} 1... c5 {[%clk 0:02:54.8]} 2. Nf3 {[%clk 0:02:59.1]}
2... d6 {[%clk 0:02:55.7]} 3. d4 {[%clk 0:02:58.7]} 3... cxd4 {[%clk 0:02:56.6]}
4. Nxd4 {[%clk 0:02:58.8]} 4... Nf6 {[%clk 0:02:57]} 5. Nc3 {[%clk 0:02:58.7]}
5... a6 {[%clk 0:02:56.9]} 6. Be3 {[%clk 0:02:57.9]} 6... e5 {[%clk 0:02:55.8]}
7. Nb3 {[%clk 0:02:57.6]} 7... Be7 {[%clk 0:02:54]} 8. Qd2 {[%clk 0:02:57.8]}
8... Be6 {[%clk 0:02:54]} 9. O-O-O {[%clk 0:02:57.9]} 9... Nbd7 {[%clk 0:02:52]}
10. f4 {[%clk 0:02:58]} 10... Qc7 {[%clk 0:02:32.4]} 11. f5 {[%clk 0:02:57.6]}
11... Bc4 {[%clk 0:02:32.6]} 12. g4 {[%clk 0:02:57.2]} 12... h6 {[%clk
0:02:28.8]} 13. h4 {[%clk 0:02:51.5]} 13... Rc8 {[%clk 0:02:17.2]} 14. Kb1
{[%clk 0:02:38.5]} 14... b5 {[%clk 0:02:13]} 15. Bd3 {[%clk 0:02:25.9]} 15... a5
{[%clk 0:01:40.9]} 16. g5 {[%clk 0:02:22.3]} 16... Ng4 {[%clk 0:01:26.7]} 17.
Bxc4 {[%clk 0:02:06.7]} 17... bxc4 {[%clk 0:01:26.3]} 18. Nd5 {[%clk 0:02:06.3]}
18... Qb8 {[%clk 0:01:19.4]} 19. Nxa5 {[%clk 0:01:55.3]} 19... Bd8 {[%clk
0:01:01.3]} 20. Qc3 {[%clk 0:01:10.1]} 20... Qb5 {[%clk 0:00:34.5]} 21. Bd2
{[%clk 0:01:03]} 21... Nf2 {[%clk 0:00:32]} 22. a4 {[%clk 0:00:56.9]} 22... Qxa4
{[%clk 0:00:22.4]} 23. Nb7 {[%clk 0:00:55.1]} 23... Qa6 {[%clk 0:00:15.1]} 24.
Qb4 {[%clk 0:00:41.7]} 24... Nc5 {[%clk 0:00:04.8]} 25. Nxd8 {[%clk 0:00:23.2]}
25... Kxd8 {[%clk 0:00:05.7]} 26. Be3 {[%clk 0:00:16.9]} 26... Nxd1 {[%clk
0:00:05.8]} 27. Rxd1 {[%clk 0:00:13.9]} 27... Ra8 {[%clk 0:00:06.3]} 28. Kc1
{[%clk 0:00:09.6]} 28... Nxe4 {[%clk 0:00:04.1]} 29. Bb6+ {[%clk 0:00:06]} 29...
Kd7 {[%clk 0:00:04.5]} 30. c3 {[%clk 0:00:05]} 30... Qa1+ {[%clk 0:00:04.3]} 31.
Kc2 {[%clk 0:00:05.3]} 31... Qa4+ {[%clk 0:00:04.9]} 32. Qxa4+ {[%clk
0:00:03.8]} 32... Rxa4 {[%clk 0:00:05.8]} 33. Be3 {[%clk 0:00:02.5]} 33... hxg5
{[%clk 0:00:05.5]} 34. hxg5 {[%clk 0:00:01.7]} 34... Kc6 {[%clk 0:00:05]} 35. b3
{[%clk 0:00:01.5]} 35... Rh2+ {[%clk 0:00:05.1]} 0-1

[Event "*** Titled Tuesday Blitz"]
[Site "Chess.com"]
[Date "2020.11.24"]
[Round "10"]
[White "romulocardoso"]
[Black "Ladislav1969"]
[Result "1-0"]
[WhiteElo "2157"]
[BlackElo "2328"]
[TimeControl "180+1"]
[EndTime "12:14:04 PST"]
[Termination "romulocardoso won on time"]

1. e4 {[%clk 0:03:00.8]} 1... c5 {[%clk 0:02:59.3]} 2. Nf3 {[%clk 0:02:59.6]}
2... e6 {[%clk 0:03:00.2]} 3. d4 {[%clk 0:02:59.2]} 3... cxd4 {[%clk 0:03:01.1]}
4. Nxd4 {[%clk 0:02:59.6]} 4... a6 {[%clk 0:03:02]} 5. Nc3 {[%clk 0:03:00]} 5...
b5 {[%clk 0:03:02]} 6. Be2 {[%clk 0:03:00.1]} 6... Bb7 {[%clk 0:03:01.9]} 7. f3
{[%clk 0:02:58.9]} 7... d6 {[%clk 0:03:00]} 8. Be3 {[%clk 0:02:59.1]} 8... Nf6
{[%clk 0:02:59.7]} 9. Qd2 {[%clk 0:02:59.1]} 9... Nbd7 {[%clk 0:02:58.8]} 10.
O-O-O {[%clk 0:02:58.8]} 10... Be7 {[%clk 0:02:57.3]} 11. Kb1 {[%clk 0:02:58]}
11... Nc5 {[%clk 0:02:54.8]} 12. g4 {[%clk 0:02:56.2]} 12... b4 {[%clk
0:02:54.5]} 13. Na4 {[%clk 0:02:45.2]} 13... Nxa4 {[%clk 0:02:48]} 14. Qxb4
{[%clk 0:02:45.2]} 14... Nc5 {[%clk 0:02:42.6]} 15. Nf5 {[%clk 0:02:40.4]} 15...
exf5 {[%clk 0:01:55.9]} 16. Bxc5 {[%clk 0:02:39.5]} 16... Qc7 {[%clk 0:01:50.4]}
17. Bb6 {[%clk 0:02:17.8]} 17... Qc6 {[%clk 0:01:47.9]} 18. g5 {[%clk
0:02:11.9]} 18... Nd7 {[%clk 0:01:41.7]} 19. Bd4 {[%clk 0:02:11.5]} 19... O-O
{[%clk 0:01:31]} 20. exf5 {[%clk 0:02:04.5]} 20... Bxg5 {[%clk 0:01:21.9]} 21.
Rhg1 {[%clk 0:02:03.8]} 21... f6 {[%clk 0:01:06.5]} 22. h4 {[%clk 0:01:50.1]}
22... Bh6 {[%clk 0:01:04.8]} 23. Bf2 {[%clk 0:01:35.2]} 23... Rac8 {[%clk
0:01:00.4]} 24. c3 {[%clk 0:01:05.6]} 24... Nc5 {[%clk 0:00:55.1]} 25. Bc4+
{[%clk 0:01:01.9]} 25... Kh8 {[%clk 0:00:54.6]} 26. Bd5 {[%clk 0:01:00.2]} 26...
Qxd5 {[%clk 0:00:26.5]} 27. Rxd5 {[%clk 0:01:01.1]} 27... Bxd5 {[%clk
0:00:26.7]} 28. Qb6 {[%clk 0:00:56.7]} 28... Bxf3 {[%clk 0:00:25]} 29. Qxd6
{[%clk 0:00:55.6]} 29... Ne4 {[%clk 0:00:24.9]} 30. Qh2 {[%clk 0:00:40.6]} 30...
Nd2+ {[%clk 0:00:21.7]} 31. Ka1 {[%clk 0:00:34.3]} 31... Rfd8 {[%clk 0:00:19.9]}
32. Bd4 {[%clk 0:00:33.6]} 32... Nc4 {[%clk 0:00:15.4]} 33. Qg3 {[%clk
0:00:32.3]} 33... Be4 {[%clk 0:00:11.9]} 34. h5 {[%clk 0:00:19.3]} 34... Bxf5
{[%clk 0:00:11.7]} 35. Qh4 {[%clk 0:00:19.5]} 35... Ne5 {[%clk 0:00:09.6]} 36.
Rf1 {[%clk 0:00:16.9]} 36... Bd3 {[%clk 0:00:06.2]} 37. Rf2 {[%clk 0:00:15]}
37... Nd7 {[%clk 0:00:02.2]} 38. Qg4 {[%clk 0:00:13.4]} 1-0

[Event "*** Titled Tuesday Blitz"]
[Site "Chess.com"]
[Date "2020.11.24"]
[Round "10"]
[White "Korchmar_Vasiliy"]
[Black "Gogolev_Artemy"]
[Result "1-0"]
[WhiteElo "2597"]
[BlackElo "2471"]
[TimeControl "180+1"]
[EndTime "12:14:05 PST"]
[Termination "Korchmar_Vasiliy won on time"]

1. e4 {[%clk 0:03:00.9]} 1... c6 {[%clk 0:02:21.8]} 2. Nf3 {[%clk 0:03:00.3]}
2... d5 {[%clk 0:02:22.2]} 3. Nc3 {[%clk 0:03:00.9]} 3... dxe4 {[%clk
0:02:21.3]} 4. Nxe4 {[%clk 0:03:00.3]} 4... Nd7 {[%clk 0:02:15.7]} 5. d4 {[%clk
0:02:59.1]} 5... Ngf6 {[%clk 0:02:14.7]} 6. Ng3 {[%clk 0:02:57.5]} 6... g6
{[%clk 0:02:11.9]} 7. Bd3 {[%clk 0:02:57.1]} 7... Bg7 {[%clk 0:02:12]} 8. O-O
{[%clk 0:02:55.8]} 8... O-O {[%clk 0:02:12.2]} 9. Re1 {[%clk 0:02:56]} 9... c5
{[%clk 0:02:05.9]} 10. c3 {[%clk 0:02:29.6]} 10... cxd4 {[%clk 0:02:04.8]} 11.
Nxd4 {[%clk 0:02:30.5]} 11... Nc5 {[%clk 0:02:03]} 12. Bc2 {[%clk 0:02:26.5]}
12... Bg4 {[%clk 0:02:00.7]} 13. f3 {[%clk 0:02:24.8]} 13... Bd7 {[%clk
0:01:53.6]} 14. Be3 {[%clk 0:02:24.6]} 14... Rc8 {[%clk 0:01:51.3]} 15. Nb3
{[%clk 0:02:23.6]} 15... Na4 {[%clk 0:01:46.1]} 16. Rb1 {[%clk 0:02:13.3]} 16...
Qc7 {[%clk 0:01:40.9]} 17. Nd4 {[%clk 0:02:11.1]} 17... Nb6 {[%clk 0:01:24.1]}
18. Bb3 {[%clk 0:02:03.2]} 18... e6 {[%clk 0:01:19.9]} 19. Qc1 {[%clk 0:01:59]}
19... Rfd8 {[%clk 0:01:09.5]} 20. Bf4 {[%clk 0:01:54.5]} 20... Qc5 {[%clk
0:01:07.8]} 21. Kh1 {[%clk 0:01:55.1]} 21... Nbd5 {[%clk 0:01:00.2]} 22. Be5
{[%clk 0:01:52.7]} 22... h6 {[%clk 0:00:47]} 23. Qc2 {[%clk 0:01:50.7]} 23... b5
{[%clk 0:00:43.4]} 24. a3 {[%clk 0:01:38.1]} 24... a5 {[%clk 0:00:42]} 25. Qe2
{[%clk 0:01:38.6]} 25... b4 {[%clk 0:00:37.4]} 26. axb4 {[%clk 0:01:39]} 26...
axb4 {[%clk 0:00:38.3]} 27. c4 {[%clk 0:01:39.6]} 27... Ne7 {[%clk 0:00:29.6]}
28. Rbd1 {[%clk 0:01:36]} 28... Be8 {[%clk 0:00:29]} 29. Bxf6 {[%clk 0:01:07.4]}
29... Bxf6 {[%clk 0:00:26.9]} 30. Ne4 {[%clk 0:01:08]} 30... Qe5 {[%clk
0:00:23]} 31. f4 {[%clk 0:01:08.5]} 31... Qxd4 {[%clk 0:00:20.8]} 32. Rxd4
{[%clk 0:01:07.5]} 32... Bxd4 {[%clk 0:00:21.7]} 33. c5 {[%clk 0:00:55.8]} 33...
Bc6 {[%clk 0:00:19.7]} 34. Nd6 {[%clk 0:00:52.1]} 34... Rc7 {[%clk 0:00:18]} 35.
Nxf7 {[%clk 0:00:51.5]} 35... Kxf7 {[%clk 0:00:13.9]} 36. Qxe6+ {[%clk
0:00:51.6]} 36... Kg7 {[%clk 0:00:13.4]} 37. Qf7+ {[%clk 0:00:50.4]} 37... Kh8
{[%clk 0:00:13.3]} 38. Rxe7 {[%clk 0:00:49.9]} 38... Rxe7 {[%clk 0:00:13.6]} 39.
Qxe7 {[%clk 0:00:50.8]} 39... Re8 {[%clk 0:00:13.9]} 40. Qh4 {[%clk 0:00:48.4]}
40... Kg7 {[%clk 0:00:11.6]} 41. f5 {[%clk 0:00:22.8]} 41... Re2 {[%clk
0:00:09.6]} 42. Qxd4+ {[%clk 0:00:22.1]} 1-0